Workbook

Sheet Info
C1: Klärtechnische Berechnungen
C2: Diese Datei enthält diverse Berechnugsformeln zur Ermittlung klärtechnischer Zustands-
C3: grössen in ARA. In der Regel können die benötigten Parameter im entsprechenden
C4: Tabellenblatt zum jeweiligen Parameter eingegeben werden (gelbe Felder).
C5: Das Tabellenblatt <KoVar> enthält diverse Konstanten sowie einige grundlegende
C6: Variablen wie die Dimensionierungsgrössen einer ARA. Für einige Berechnungen
C7: ist die Angabe dieser Stammdaten nötig. Geben sie deshalb zunächst ab
C8: ab Zeile 38 die Stammdaten ihrer ARA ein.
A11: Konstanten und Variablen (KoVar)
B12: Produktekosten
C13: Angabe der effektiven Kosten des Produkts pro Tonne (t). Zu beachten ist,
C14: dass die Liefermenge und die Gebindegrösse starken Einfluss auf den Preis hat
B16: Transportpauschalen
C17: Angabe der gesamten Transportkosten pro Jahr. Wenn diese Kosten eingegeben werden,
C18: beinhalten die berechneten Kosten diese Transportkosten.
B20: spez. Belastungen pro Einwohnerwert
C21: Damit werden die Einwohnerwerte - entsprechende Eingaben vorausgesetzt - berechnet.
B23: Einleitungsbedingungen
C24: Werden nicht direkt für die Berechnungen benötigt,
C25: sind der Vollständigkeit halber jedoch hier aufgeführt.
B27: Dimensionierungsgrössen der ARA
C28: Wenn die Dimensionierungswerte eingegeben werden,
C29: kann die Auslastung berechnet werden.
B31: Molmassen
C32: Werden für diverse Berechnungen benötigt.
B34: Dichteangaben
C35: Werden für diverse Berechnungen (Umrechnung Masse - Volumen) benötigt.
A37: Säurebindevermögen (SBV)
B38: Eingaben
C39: Zwingend benötigte Eingaben zur Berechnung des SBV-Mankos sind die
C40: Abwassermenge, die Stickstoff- bzw. die Ammoniumkonzentration (verwendet wird
C41: in absteigender Priorität NH4-N Zufluss BB, Nges im Zufluss Rohabwasser,
C42: NH4-N im Zufluss Rohabwasser), das SBV im Zufluss und das minimal benötigte
C43: SBV im Abfluss, sowie die Nitrifikationsleistung.
B45: Berechnungen Nitrifikation /Alkalinität
C46: Berechnung der relevanten absoluten und stöchiometirschen Stickstofffrachten.
B48: Benötigte Mengen zur Neutralisation/Pufferung pro Tag
C49: Berechnung der pro Tag benötigten Mengen der aufgeführten Chemikalien zur
C50: Einhaltung eines ausreichenden Säurebindevermögens und damit des pH-Werts
C51: im Belüftungsbecken bzw. im ARA-Abfluss.
B53: Benötigte Mengen zur Neutralisation/Pufferung pro m3 Abwasser
C54: Berechnung der pro m3 Abwasser benötigten Mengen der aufgeführten Chemikalien
C55: zur Einhaltung eines ausreichenden Säurebindevermögens und damit des pH-Werts
C56: im Belüftungsbecken bzw. im ARA-Abfluss.
B58: Kosten
C59: Berechnung der Kosten für die aufgeführten Chemikalien pro Tag, pro Jahr und
C60: pro 1'000 m3. Falls die Transportkosten (Jahrespauschale) eingegeben wurden,
C61: werden die Transportkosten ebenfalls berücksichtigt.
B63: Frachten und Einwohnerwerte im Rohabwasser
C64: Berechnung der Frachten und Einwohnerwerten im Rohabwasser
C65: aufgrund der getätigten Eingaben.
B67: Auslastung ARA
C68: Berechnung der Auslastung der ARA, Vergleich der Frachten
C69: mit den Dimensionierungswerten, sofern diese eingegeben wurden.
B71: Nährstoffverhältnisse im Rohabwasser
C72: Berechnung der Nährstoffverhältnisse im Rohabwasser.
A74: Informationen zu Wasserhärte und Bestimmung des Säurebindevermögens (SBVInfo)
B75: Umrechnung von Wasserhärteeinheiten
C76: Umrechnung der verschiedenen Einheiten ineinander
B78: Beurteilung von Wasserhärten
C79: Einteilung und Beurteilung der Grössenordnungen der Wasserhärten.
B81: Bestimmung des Säurebindevermögens
C82: Anleitung zur Messung des SBV durch Titration
A84: Phosphatfällung (PElim)
B85: Eingaben
C86: Eingabe der erforderlichen Parameter zur Berechnung der Dosiermenge an Fällmittel.
B88: Betriebsparameter
C89: Berechnete Betriebsparameter der Phosphatfällung
B91: Bedarf und Dosierung
C92: Berechnung der benötigten Fällmittlmengen absolut,
C93: sowie der Dosierung des Fällmittels pro Tag bzw. pro m3 Abwasser.
A95: Anforderung Nitrifikation
C96: Die Anforderungen für die Nitrifikation sind in der Gewässerschutzverordnung (GSchV)
C97: festgelegt: Bei Abwassertemperaturen >= 10°C muss eine Abflusskonzentration von
C98: 2 mg NH4-N/l, sowie ein Reinigungseffekt von 90% (bezogen auf den Kjeldahl-Stickstoff
C99: im Rohabwasser) eingehalten werden. Bei Abwassertemperaturen < 10°C werden die
C100: Anforderungen entsprechend der Wachstumsgeschwindigkeit der Nitrifikanten reduziert.
C101: Es ist die Eingabe der Abwassertemperatur und der Zuflusskonzentration erforderlich.
A103: Klärtechnische Berechnungen (KTB)
C104: Berechnung diverser Betriebsparameter in ARA.
C105: Jeder Betriebsparameter ist als separater Block aufgeführt und benötigt ein
C106: eigenes Set an Eingabe-Parmeter.
C107: Beckendimensionierungen (Volumina und Oberflächen) können aus den
C108: Dimensionierungsgrössen (Register <KoVar>) importiert werden.
B109: Schlammalter
C110: benötigte Parameter: Volumen Belebungsbecken, ÜSS: Menge und TS-Gehalt
C111: fakultativ: Abwassermenge und GUS
C112: für SBR: gesamte Zykluszeit und Zeit der aeroben Phase
C113: Das aerobe Schlammalter bei ARA mit einer anoxischen Zone kann berechnet werden,
C114: wenn anstelle des gesamten Beckenvolumens
C115: nur das aerob betriebene Volumen eingegeben wird.
B116: Schlammindex
C117: benötigte Parameter: TS-Gehalt (TS) und Absetzvolumen (AV)
B118: Aufenthaltszeit (VKB, BB, NKB, FR)
C119: benötigte Parameter: Beckenvolumen (VKB, BB, NKB, FR),
C120: Abwasser- bzw. Schlammmenge
B121: hydraulische Oberflächenbelastung (VKB, NKB)
C122: benötigte Parameter: Beckenoberfläche, Abwassermenge
B123: TS-Oberflächenbelastung (NKB)
C124: benötigte Parameter: Beckenoberfläche, Abwassermenge, TS-Gehalt im BB
B125: Schlammvolumenbelastung (NKB)
C126: benötigte Parameter: Beckenoberfläche, Abwassermenge, Absetzvolumen Belebtschlamm
B127: BSB5- bzw. CSB-Schlammbelastung (BB)
C128: benötigte Parameter: Abwassermenge, BSB5- bzw. CSB-Konzentration im Zufluss,
C129: TS-Gehalt im Belebungsbecken, Beckenvolumen Belüftungsbecken
B130: BSB5- bzw. CSB-Volumenbelastung (BB)
C131: benötigte Parameter: Abwassermenge, BSB5- bzw. CSB-Konzentration im Zufluss,
C132: Beckenvolumen Belüftungsbecken
B133: BSB5- bzw. CSB-Oberflächenbelastung (TK/TTK)
C134: benötigte Parameter: Abwassermenge, BSB5- bzw. CSB-Konzentration im Zufluss,
C135: aktive Oberfläche TK bzw. TTK
B136: hydr. Oberflächenbelastung (Filter)
C137: benötigte Parameter: Abwassermenge, aktive Oberfläche des Filters
B138: TS- und oTS-Belastung Faulraum
C139: benötigte Parameter: Volumen Faulraum, Frischschlammmenge (Beschickung FR),
C140: TS-Gehalt und oTS-Gehalt (Glühverlust) des Frischschlammes
B141: Abbauleistungen
C142: Berechnung der Abbauleistung (Elimination) beliebiger Parameter
C143: benötigte Parameter: Konzentrationen im Zu- und Abfluss
B144: Bechmarks (Verhältniszahlen)
C145: Berechnung diverser Verhältniszahlen im ARA-Betrieb über einen freien Zeitraum.
A147: Klärschlammentwässerung
C148: Von folgenden 4 Variablen:
C149: - Klärschlamm flüssig, Menge
C150: - Klärschlamm flüssig, TS-Gehalt
C151: - Klärschlamm entwässert, Menge
C152: - Klärschlamm entwässert, TS-Gehalt
C153: müssen 3 eingegeben werden. Die gesuchte Grösse (keine Eingabe oder 0)
C154: wird berechnet.

Sheet KoVar
A1: Produktekosten | F1: Bemerkungen | H1: VarName | J1: HilfsVar
B2: Stoff | C2: Einheit | D2: Preis | F2: Die Preise hängen sehr stark von der Bestellmenge,
B3: CaCO3 fest (Kreide) | C3: CHF/t | D3: 101 | F3: vom Lieferanten, vom Lieferort und von den aktuellen | H3: CHF_CaCO3
B4: NaOH fest | C4: CHF/t | D4: 801 | F4: Marktpreisen ab. Für aktuelle Daten ist daher immer | H4: CHF_NaOH100
B5: NaOH 50% | C5: CHF/t | D5: 401 | F5: eine aktuelle Offerte anzufordern! | H5: CHF_NaOH50
B6: NaOH 30% | C6: CHF/t | D6: 301 | H6: CHF_NaOH30
B7: Ca(OH)2 fest | C7: CHF/t | D7: 901 | H7: CHF_CaO2H2
B8: NaAlO2 fest | C8: CHF/t | H8: CHF_NaAlO2_100
B9: NaAlO2 Lösung, 30% | C9: CHF/t | D9: 1001 | H9: CHF_NaAlO2_30
A11: Transportpauschalen pro Jahr
B12: Kosten pauschal pro Jahr | C12: Fr/a | D12: 3201 | H12: CHF_TrspJahr
B13: Kosten pro Tag | C13: Fr/d | D13: =IF(ISNUMBER(CHF_TrspJahr), CHF_TrspJahr / 365, "") -> 8.769863014 | H13: CHF_TrspTag
A15: Dimensionierungsgrössen der ARA
B16: Parameter | C16: Einheit | D16: Wert
B17: Abwassermenge pro Tag Q-24 | C17: m3/d | D17: 3000 | H17: DimQ24
B18: Abwasserzufluss bei Trockenwetter Q-TW | C18: l/s | D18: 50 | H18: DimQTW
B19: Abwasserzufluss bei Regenwetter Q-RW | C19: l/s | D19: 100 | H19: DimQRW
B20: BSB5 Fracht im Rohabwasser | C20: kg/d | D20: 500 | H20: DimBSB5
B21: CSB Fracht im Rohabwasser | C21: kg/d | D21: 1000 | H21: DimCSB
B22: Pges Fracht im Rohabwasser | C22: kg/d | D22: 15 | H22: DimPges
B23: Nges Fracht im Rohabwasser | C23: kg/d | D23: 110 | H23: DimNges
B24: NH4-N Fracht im Rohabwasser | C24: kg/d | D24: 60 | H24: DimNH4N
B26: Vorklärbecken, Oberfläche O-VKB | C26: m2 | D26: 100 | H26: DimVKB_O
B27: Vorklärbecken, Volumen V-VKB | C27: m3 | D27: 200 | H27: DimVKB_V
B28: Belebungsbecken, Volumen V-BB | C28: m3 | D28: 800 | H28: DimBB:V
B29: Nachklärbecken, Oberfläche O-NKB | C29: m2 | D29: 200 | H29: DimNKB_O
B30: Nachklärbecken, Volumen V-NKB | C30: m3 | D30: 500 | H30: DimNKB_V
B31: Faulraum, Volumen V-FR | C31: m3 | D31: 750 | H31: DimFR_V
B32: Filter, Oberfläche O-Fi | C32: m2 | D32: 50 | H32: DimFi_O
B33: (Tauch-) Tropfkörper, Oberfläche O-TK | C33: m2 | D33: 3500 | H33: DimTTK_O
A35: Spezifische Belastungen pro Einwohnerwert
B36: Parameter | C36: Einheit | D36: Wert
B37: Hydraulisch | C37: l/d | D37: =J37 -> 200 | H37: EWspez_hydr | J37: 200
B38: CSB im Rohabwasser | C38: g CSB/EW*d | D38: =J38 -> 120 | H38: EWspez_CSB | J38: 120
B39: BSB5 im Rohabwasser | C39: g BSB5/EW*d | D39: 60 | H39: EWspez_BSB5 | J39: 60
B40: Gesamt-Phosphor im Rohabwasser | C40: g Pges/EW*d | D40: =0.1 * J40 -> 1.5 | H40: EWspez_Pges | J40: 15
B41: Gesamt-Stickstoff im Rohabwasser | C41: g Nges/EW*d | D41: =0.1 * J41 -> 12 | H41: EWspez_Nges | J41: 120
B42: Ammonium-Stickstoff im Rohabwasser | C42: g NH4-N/EW*d | D42: =0.1 * J42 -> 7 | H42: EWspez_NH4N | J42: 70
A44: Einleitungsbedingungen GSchV
B45: Parameter | C45: Einheit | D45: Wert
B46: CSB Konz. | C46: mg CSB/l | D46: 60 | H46: EB_CSB_c
B47: CSB Reinigungseffekt | C47: % | D47: 80 | H47: EB_CSB_Re
B48: BSB5 Konz. | C48: mg BSB5/l | D48: 15 | H48: EB_BSB5_c
B49: BSB5 Reinigungseffekt | C49: % | D49: 90 | H49: EB_BSB5_Re
B50: Gesamte ungelöste Stoffe | C50: mg GUS/l | D50: 15 | H50: EB_GUS_c
B51: DOC Konz. | C51: mg DOC/l | D51: 10 | H51: EB_DOC_c
B52: DOC Reinigungseffekt bez. TOC | C52: % | D52: 90 | H52: EB_DOC_Re
B53: Gesamt-Phosphor Konz. | C53: mg Pges/l | D53: 0.8 | H53: EB_Pges_c
B54: Gesamt-Phosphor Reinigungseffekt | C54: % | D54: 80 | H54: EB_Pges_Re
B55: Ammonium-Stickstoff | C55: mg NH4-N/l | D55: 2 | H55: EB_NH4N_c
B56: Ammonium-Stickstoff Reinigungseffekt | C56: % | D56: 90 | H56: EB_NH4N_Re
A58: Molmassen in g/Mol
B59: Elemente | C59: Symbol | D59: Atommasse | F59: Bemerkungen | H59: Konst. Name
B60: Wasserstoff | C60: H | D60: 1.0079 | H60: mM_H
B61: Kohlenstoff | C61: C | D61: 12.011 | H61: mM_C
B62: Stickstoff | C62: N | D62: 14.007 | H62: mM_N
B63: Sauerstoff | C63: O | D63: 15.999 | H63: mM_O
B64: Natrium | C64: Na | D64: 22.99 | H64: mM_Na
B65: Magnesium | C65: Mg | D65: 24.305 | H65: mM_Mg
B66: Aluminium | C66: Al | D66: 26.982 | H66: mM_Al
B67: Phosphor | C67: P | D67: 30.974 | H67: mM_P
B68: Schwefel | C68: S | D68: 32.066 | H68: mM_S
B69: Chlor | C69: Cl | D69: 35.4527 | H69: mM_Cl
B70: Kalium | C70: K | D70: 39.098 | H70: mM_K
B71: Calcium | C71: Ca | D71: 40.078 | H71: mM_Ca
B72: Eisen | C72: Fe | D72: 55.845 | H72: mM_Fe
B74: Stoffe | C74: Formel | D74: Molmasse | F74: Bemerkungen
B75: Calciumcarbonat | C75: CaCO3 | D75: =mM_Ca + mM_C + 3*mM_O -> 100.086 | F75: =Kalk, Kreide; 1 Mol = 2 Val | H75: mM_CaCO3
B76: Natriumhydroxid | C76: NaOH | D76: =mM_Na + mM_O + mM_H -> 39.9969 | F76: gelöst = Natronlauge; 1 Mol = 1 Val | H76: mM_NaOH
B77: Calciumhydrat | C77: Ca(OH)2 | D77: =mM_Ca + 2*(mM_O + mM_H) -> 74.0918 | F77: =gelöschter Kalk, in Wasser aufgeschlämmt=Kalkmilch; 1 Mol = 2 Val | H77: mM_CaO2H2
B78: Calciumoxid | C78: CaO | D78: =mM_Ca + mM_O -> 56.077 | F78: =gebrannter Kalk; 1 Mol = 2 Val | H78: mM_CaO
B79: Calciumhydrogencarbonat | C79: Ca(HCO3)2 | D79: =mM_Ca + 2*(mM_H + mM_C + 3*mM_O) -> 162.1098 | F79: =Calciumbicarbonat, Soda; 1 Mol = 1 Val | H79: mM_CaHCO3
B80: Natriumaluminat | C80: NaAlO2 | D80: =mM_Na + mM_Al + 2*mM_O -> 81.97 | F80: 1 Mol = 3 Val | H80: mM_NaAlO2
A82: Dichteangaben in g/ml bzw. kg/m3
B83: Stoffe | C83: Abkürzung | D83: Dichte
B84: Natronlauge 30% | C84: NaOH 30% | D84: 1.33 | H84: Di_NaOH30
B85: Natronlauge 50% | C85: NaOH 50% | D85: 1.52 | H85: Di_NaOH50
B86: Kalkmilch 5% | C86: Ca(OH)2 5% | D86: 1.03 | F86: geschätzt | H86: Di_CaO2H2_5
B87: Kalkmilch 10% | C87: Ca(OH)2 10% | D87: 1.06 | F87: geschätzt | H87: Di_CaO2H2_10
B88: Kalkmilch 20% | C88: Ca(OH)2 20% | D88: 1.11 | H88: Di_CaO2H2_20
B89: Kalkmilch 40% | C89: Ca(OH)2 40% | D89: 1.22 | F89: geschätzt | H89: Di_CaO2H2_40
B90: Natriumaluminat 30% | C90: NaAlO2 30% | D90: 1.5 | H90: Di_NaAlO2_30

Sheet SBV
A1: Parameter | B1: Einheit | C1: Wert | E1: Bemerkungen | G1: VarName | I1: HilfsVar
A3: Eingaben | B3: Einheit | C3: Wert
A4: Zufluss ARA (Tagesmenge) | B4: m3/d | C4: 2000 | G4: Q_24 | K4: ang. EW: | L4: 400 | M4: =$L$4*0.15 -> 60 | N4: m3/d (striktes TS)
A5: Konz. an CSB im Zufluss Rohabwasser | B5: mg CSB/l | C5: 300 | E5: fakultative Eingabe, --> Berechnungen ab Zeile 72 | M5: 100 | N5: m3/d (MS, inkl. FW)
A6: Konz. an BSB5 im Zufluss Rohabwasser | B6: mg BSB5/l | E6: fakultative Eingabe, --> Berechnungen ab Zeile 72 | M6: =$L$4*0.06 -> 24 | N6: kg BSB5/d
A7: Konz. an Pges im Zufluss Rohabwasser | B7: mg Pges/l | E7: fakultative Eingabe, --> Berechnungen ab Zeile 72 | M7: =$L$4*0.12 -> 48 | N7: kg CSB/d
A8: Konz. an Nges im Zufluss Rohabwasser | B8: mg Nges/l | M8: =$L$4*10 -> 4000 | N8: g NH4-N/l
A9: Konz. an NH4-N im Zufluss Rohabwasser | B9: mg NH4-N/l roh | C9: 15
A10: Konz. an NH4-N im Zufluss Belüftungsbecken | B10: mg NH4-N/l BB
A11: Säurebindevermögen (SBV) im Zufluss Belüftungsbecken (roh) | B11: mVal/l | C11: 2.5 | G11: SBVzu
A12: Minimal empfohlenes SBV im ARA-Abfluss | B12: mVal/l | C12: 2 | G12: SBVab
A13: Nitrifikationsleistung der ARA | B13: % | C13: 90 | I13: =AND(NOT(ISBLANK(C13)), C13>=0, C13<=100) -> TRUE
A14: Denitrifikationsleistung der ARA (bez. auf Nges/NH4N im Zufluss) | B14: % | C14: 0 | I14: =AND(NOT(ISBLANK(C14)), C14>=0, C14<=100, C14<=C13) -> TRUE
A16: Berechnungen Nitrifikation/Alkalinität | B16: Einheit | C16: Wert
A17: relevante N-Fracht im Zufluss Biologie gesamt | B17: kg N/d | C17: =IF(OR(ISNUMBER($C$10), ISNUMBER($C$8), ISNUMBER($C$9)), 0.001 * Q_24 * IF(ISNUMBER($C$10), $C$10, IF(ISNUMBER($C$8), $C$8, IF(ISNUMBER($C$9), $C$9, ""))), "") -> 30 | E17: 1. Priorität: NH4-N Zufluss BB, 2. Priorität: Nges Zufluss roh, 3. Priorität: NH4-N Zufluss roh
A18: relevante molare N-Fracht im Zufluss Biologie gesamt | B18: kVal/d | C18: =IF(ISNUMBER($C$17), $C$17 / mM_N, "") -> 2.14178625
A19: produzierte Säure bei 100% Nitrifikation / 0% Denitrifikation | B19: kVal/d | C19: =IF(ISNUMBER($C$18), 2 * $C$18, "") -> 4.283572499
A20: benötigte Alkalinität bei 100% Nitrifikation / 0% Denitrifikation | B20: kVal/d | C20: =$C$19 -> 4.283572499
A21: ="benötigte Alkalinität bei " & $C$13 & "% Nitrifikation / " & IF(ISNUMBER($C$14), $C$14, "0") & "% Denitrifikation" -> benötigte Alkalinität bei 90% Nitrifikation / 0% Denitrifikation | B21: kVal/d | C21: =IF(ISNUMBER($C$17), ((2 * $C$13 * 0.01 * $C$17) / mM_N) - ((1 * $C$14 * 0.01 * $C$17) / mM_N), "") -> 3.85521525
A22: vorhandene Alkalinität bei Betriebsbedingungen | B22: kVal/d | C22: =IF(AND(ISNUMBER(SBVzu), ISNUMBER(SBVab), ISNUMBER(Q_24)), (SBVzu - SBVab) * Q_24 * 0.001, "") -> 1
A23: zusätzlich benötigte Alkalinität bei Betriebsbedingungen (Manko) | B23: kVal/d | C23: =IF(AND(ISNUMBER($C$21), ISNUMBER($C$22)), IF(($C$21 - $C$22)>0, $C$21 - $C$22, 0), "") -> 2.85521525
A25: Benötigte Mengen zur Neutralisation/Pufferung pro Tag | B25: Einheit | C25: Wert
A26: CaCO3 (Kreide fest, 100%) | B26: kg CaCO3/d | C26: =IF(ISNUMBER($C$23), $C$23 * mM_CaCO3 * 0.5, "") -> 142.8835367
A27: NaOH (100%, als Feststoff) | B27: kg NaOH/d | C27: =IF(ISNUMBER($C$23), $C$23 * mM_NaOH, "") -> 114.1997588
A28: NaOH (50%-ige Lösung) | B28: l NaOH 50%/d | C28: =IF(ISNUMBER($C$23), ($C$23 * mM_NaOH * (100/50)) / Di_NaOH50, "") -> 150.2628405
A29: NaOH (30%-ige Lösung) | B29: l NaOH 30%/d | C29: =IF(ISNUMBER($C$23), ($C$23 * mM_NaOH * (100/30)) / Di_NaOH30, "") -> 286.2149344
A30: Ca(OH)2 (100%, als Feststoff) | B30: kg Ca(OH)2/d | C30: =IF(ISNUMBER($C$23), $C$23 * mM_CaO2H2 * 0.5, "") -> 105.7740186
A31: Ca(OH)2 (5%-ige Lösung) | B31: l Ca(OH)2 5%/d | C31: =IF(ISNUMBER($C$23), $C$23 * mM_CaO2H2 * 0.5 * (100/5) / Di_CaO2H2_5, "") -> 2053.864439
A32: Ca(OH)2 (10%-ige Lösung) | B32: l Ca(OH)2 10%/d | C32: =IF(ISNUMBER($C$23), $C$23 * mM_CaO2H2 * 0.5 * (100/10) / Di_CaO2H2_10, "") -> 997.8681001
A33: Ca(OH)2 (20%-ige Lösung) | B33: l Ca(OH)2 20%/d | C33: =IF(ISNUMBER($C$23), $C$23 * mM_CaO2H2 * 0.5 * (100/20) / Di_CaO2H2_20, "") -> 476.4595433
A34: Ca(OH)2 (40%-ige Lösung) | B34: l Ca(OH)2 40%/d | C34: =IF(ISNUMBER($C$23), $C$23 * mM_CaO2H2 * 0.5 * (100/40) / Di_CaO2H2_40, "") -> 216.7500381
A35: NaAlO2 (100% als Feststoff) | B35: kg NaAlO2/d | C35: =IF(ISNUMBER($C$23), $C$23 * mM_NaAlO2 * (1/3), "") -> 78.013998
A36: NaAlO2 (30%-ige Lösung) | B36: l NaAlO2 30%/d | C36: =IF(ISNUMBER($C$23), $C$23 * mM_NaAlO2 * (1/3) * (100/30) / Di_NaAlO2_30, "") -> 173.36444
A38: Benötigte Mengen zur Neutralisation/Pufferung pro m3 Abwasser | B38: Einheit | C38: Wert
A39: CaCO3 (Kreide fest, 100%) | B39: g CaCO3/m3 | C39: =IF(AND(ISNUMBER($C$23), ISNUMBER($C$4)), 1000* $C$23 * mM_CaCO3 * 0.5 / $C$4, "") -> 71.44176837
A40: NaOH (100%, als Feststoff) | B40: g NaOH/m3 | C40: =IF(AND(ISNUMBER($C$23), ISNUMBER($C$4)), 1000 * $C$23 * mM_NaOH / $C$4, "") -> 57.09987941
A41: NaOH (50%-ige Lösung) | B41: ml NaOH 50%/m3 | C41: =IF(AND(ISNUMBER($C$23), ISNUMBER($C$4)), 1000 * ($C$23 * mM_NaOH * (100/50)) / (Di_NaOH50 * $C$4), "") -> 75.13142027
A42: NaOH (30%-ige Lösung) | B42: ml NaOH 30%/m3 | C42: =IF(AND(ISNUMBER($C$23), ISNUMBER($C$4)), 1000 * ($C$23 * mM_NaOH * (100/30)) / (Di_NaOH30 * $C$4), "") -> 143.1074672
A43: Ca(OH)2 (100%, als Feststoff) | B43: g Ca(OH)2/m3 | C43: =IF(AND(ISNUMBER($C$23), ISNUMBER($C$4)), 1000 * $C$23 * mM_CaO2H2 * 0.5 / $C$4, "") -> 52.88700931
A44: Ca(OH)2 (5%-ige Lösung) | B44: ml Ca(OH)2 5%/m3 | C44: =IF(AND(ISNUMBER($C$23), ISNUMBER($C$4)), 1000 * $C$23 * mM_CaO2H2 * 0.5 * (100/5) / (Di_CaO2H2_5 * $C$4), "") -> 1026.93222
A45: Ca(OH)2 (10%-ige Lösung) | B45: ml Ca(OH)2 10%/m3 | C45: =IF(AND(ISNUMBER($C$23), ISNUMBER($C$4)), 1000 * ($C$23 * mM_CaO2H2 * 0.5 * (100/10)) / (Di_CaO2H2_10 * $C$4), "") -> 498.9340501
A46: Ca(OH)2 (20%-ige Lösung) | B46: ml Ca(OH)2 20%/m3 | C46: =IF(AND(ISNUMBER($C$23), ISNUMBER($C$4)), 1000 * ($C$23 * mM_CaO2H2 * 0.5 * (100/20)) / (Di_CaO2H2_20 * $C$4), "") -> 238.2297716
A47: Ca(OH)2 (40%-ige Lösung) | B47: ml Ca(OH)2 40%/m3 | C47: =IF(AND(ISNUMBER($C$23), ISNUMBER($C$4)), 1000 * ($C$23 * mM_CaO2H2 * 0.5 * (100/40)) / (Di_CaO2H2_40 * $C$4), "") -> 108.3750191
A48: NaAlO2 (100% als Feststoff) | B48: g NaAlO2/m3 | C48: =IF(AND(ISNUMBER($C$23), ISNUMBER($C$4)), 1000 * $C$23 * mM_NaAlO2 * (1/3) / $C$4, "") -> 39.006999
A49: NaAlO2 (30%-ige Lösung) | B49: ml NaAlO2 30%/m3 | C49: =IF(AND(ISNUMBER($C$23), ISNUMBER($C$4)), 1000 * ($C$23 * mM_NaAlO2 * (1/3) * (100/30)) / (Di_NaAlO2_30 * $C$4), "") -> 86.68222
A51: ="Kosten pro Tag " & IF(ISNUMBER(CHF_TrspTag), "inkl.", "excl.") & " Transport" -> Kosten pro Tag inkl. Transport | B51: Einheit | C51: Wert | E51: Wenn die Transportkosten (Pauschale pro Jahr)
A52: CaCO3 (Kreide fest, 100%) | B52: CHF/d | C52: =IF(AND(ISNUMBER($C$26), ISNUMBER(CHF_CaCO3)), 0.001 * $C$26 * CHF_CaCO3 + IF(ISNUMBER(CHF_TrspTag), CHF_TrspTag, 0), "") -> 23.20110022 | E52: in Tabelle KoVar, Zelle D12, eingegeben wurde,
A53: NaOH (50%-ige Lösung) | B53: CHF/d | C53: =IF(AND(ISNUMBER($C$28), ISNUMBER(Di_NaOH50), ISNUMBER(CHF_NaOH50)), 0.001 * $C$28 * Di_NaOH50 * CHF_NaOH50 + IF(ISNUMBER(CHF_TrspTag), CHF_TrspTag, 0), "") -> 100.3580696 | E53: werden die Transportkosten bei den neben- und
A54: NaOH (30%-ige Lösung) | B54: CHF/d | C54: =IF(AND(ISNUMBER($C$29), ISNUMBER(Di_NaOH30), ISNUMBER(CHF_NaOH30)), 0.001 * $C$29 * Di_NaOH30 * CHF_NaOH30 + IF(ISNUMBER(CHF_TrspTag), CHF_TrspTag, 0), "") -> 123.3502877 | E54: untenstehen Berechnungen berücksichtigt.
A55: Ca(OH)2 (100%, als Feststoff) | B55: CHF/d | C55: =IF(AND(ISNUMBER($C$30), ISNUMBER(CHF_CaO2H2)), 0.001 * $C$30 * CHF_CaO2H2 + IF(ISNUMBER(CHF_TrspTag), CHF_TrspTag, 0), "") -> 104.0722538
A56: NaAlO2 (30%-ige Lösung) | B56: CHF/d | C56: =IF(AND(ISNUMBER($C$36), ISNUMBER(Di_NaAlO2_30), ISNUMBER(CHF_NaAlO2_30)), 0.001 * $C$36 * Di_NaAlO2_30 * CHF_NaAlO2_30 + IF(ISNUMBER(CHF_TrspTag), CHF_TrspTag, 0), "") -> 269.0765697
A58: ="Kosten pro Jahr " & IF(ISNUMBER(CHF_TrspTag), "inkl.", "excl.") & " Transport" -> Kosten pro Jahr inkl. Transport | B58: Einheit | C58: Wert
A59: CaCO3 (Kreide fest, 100%) | B59: CHF/a | C59: =IF(AND(ISNUMBER($C$26), ISNUMBER(CHF_CaCO3)), 0.001 * $C$26 * CHF_CaCO3 * 365 + CHF_TrspJahr, "") -> 8468.401582
A60: NaOH (50%-ige Lösung) | B60: CHF/a | C60: =IF(AND(ISNUMBER($C$28), ISNUMBER(Di_NaOH50), ISNUMBER(CHF_NaOH50)), 0.001 * $C$28 * Di_NaOH50 * CHF_NaOH50 * 365 + CHF_TrspJahr, "") -> 36630.6954
A61: NaOH (30%-ige Lösung) | B61: CHF/a | C61: =IF(AND(ISNUMBER($C$29), ISNUMBER(Di_NaOH30), ISNUMBER(CHF_NaOH30)), 0.001 * $C$29 * Di_NaOH30 * CHF_NaOH30 * 365 + CHF_TrspJahr, "") -> 45022.85501
A62: Ca(OH)2 (100%, als Feststoff) | B62: CHF/a | C62: =IF(AND(ISNUMBER($C$30), ISNUMBER(CHF_CaO2H2)), 0.001 * $C$30 * CHF_CaO2H2 * 365 + CHF_TrspJahr, "") -> 37986.37263
A63: NaAlO2 (30%-ige Lösung) | B63: CHF/a | C63: =IF(AND(ISNUMBER($C$36), ISNUMBER(Di_NaAlO2_30), ISNUMBER(CHF_NaAlO2_30)), 0.001 * $C$36 * Di_NaAlO2_30 * CHF_NaAlO2_30 * 365 + CHF_TrspJahr, "") -> 98212.94793
A65: ="Kosten pro 1'000 m3 Abwasser " & IF(ISNUMBER(CHF_TrspJahr), "inkl.", "excl.") & " Transport" -> Kosten pro 1'000 m3 Abwasser inkl. Transport | B65: Einheit | C65: Wert
A66: CaCO3 (Kreide fest, 100%) | B66: CHF/1000 m3 | C66: =1000 * ($C$26 * 0.001 * CHF_CaCO3 + IF(ISNUMBER(CHF_TrspTag), CHF_TrspTag, 0)) / Q_24 -> 11.60055011
A67: NaOH (50%-ige Lösung) | B67: CHF/1000 m3 | C67: =1000 * ($C$28 * Di_NaOH50 * 0.001 * CHF_NaOH50 + IF(ISNUMBER(CHF_TrspTag), CHF_TrspTag, 0)) / Q_24 -> 50.17903479
A68: NaOH (30%-ige Lösung) | B68: CHF/1000 m3 | C68: =1000 * ($C$29 * Di_NaOH30 * 0.001 * CHF_NaOH30 + IF(ISNUMBER(CHF_TrspTag), CHF_TrspTag, 0)) / Q_24 -> 61.67514384
A69: Ca(OH)2 (100%, als Feststoff) | B69: CHF/1000 m3 | C69: =1000 * ($C$30 * 0.001 * CHF_CaO2H2 + IF(ISNUMBER(CHF_TrspTag), CHF_TrspTag, 0)) / Q_24 -> 52.03612689
A70: NaAlO2 (30%-ige Lösung) | B70: CHF/1000 m3 | C70: =1000 * ($C$36 * Di_NaAlO2_30 * 0.001 * CHF_NaAlO2_30 + IF(ISNUMBER(CHF_TrspTag), CHF_TrspTag, 0)) / Q_24 -> 134.5382848
A72: Frachten und Einwohnerwerte im Rohabwasser | B72: Einheit | C72: Wert
A73: CSB Fracht | B73: kg CSB/d | C73: =IF(AND(ISNUMBER(Q_24), ISNUMBER(C5)), 0.001 * Q_24 * C5, "") -> 600
A74: BSB5 Fracht | B74: kg BSB5/d
A75: Pges Fracht | B75: kg Pges/d
A76: Nges Fracht | B76: kg Nges/d
A77: NH4-N Fracht | B77: kg NH4-N/d | C77: 30
A78: NH4-N Fracht Zufluss BB | B78: kg NH4-N/d BB
A79: Einwohnerwerte hydraulisch | B79: EW hydr | C79: =IF(ISNUMBER(Q_24), 1000 * Q_24 / EWspez_hydr, "") -> 10000
A80: Einwohnerwerte CSB | B80: EW CSB | C80: =IF(AND(ISNUMBER(Q_24), ISNUMBER(C5)), Q_24 * C5 / EWspez_CSB, "") -> 5000
A81: Einwohnerwerte BSB5 | B81: EW BSB5 | C81: =IF(AND(ISNUMBER(Q_24), ISNUMBER(C6)), Q_24 * C6 / EWspez_BSB5, "") -> 
A82: Einwohnerwerte Pges | B82: EW Pges | C82: =IF(AND(ISNUMBER(Q_24), ISNUMBER(C7)), Q_24 * C7 / EWspez_Pges, "") -> 
A83: Einwohnerwerte Nges | B83: EW Nges | C83: =IF(AND(ISNUMBER(Q_24), ISNUMBER(C8)), Q_24 * C8 / EWspez_Nges, "") -> 
A84: Einwohnerwerte NH4-N | B84: EW NH4-N | C84: =IF(AND(ISNUMBER(Q_24), ISNUMBER(C9)), Q_24 * C9 / EWspez_NH4N, "") -> 4285.714286
A86: Auslastung ARA | B86: Einheit | C86: Wert
A87: Hydraulisch | B87: % | C87: =IF(AND(ISNUMBER(Q_24), ISNUMBER(DimQ24)), 100 * Q_24 / DimQ24, "") -> 66.66666667
A88: Biochemisch bez. CSB | B88: % | C88: =IF(AND(ISNUMBER(Q_24), ISNUMBER(DimCSB), ISNUMBER($C$5)), 100 * 0.001 * Q_24 * $C$5 / DimCSB, "") -> 60
A89: Biochemisch bez. BSB5 | B89: % | C89: =IF(AND(ISNUMBER(Q_24), ISNUMBER(DimBSB5), ISNUMBER($C$6)), 100 * 0.001 * Q_24 * $C$6 / DimBSB5, "") -> 
A90: Bez. Gesamt-Phosphor | B90: % | C90: =IF(AND(ISNUMBER(Q_24), ISNUMBER(DimPges), ISNUMBER($C$7)), 100 * 0.001 * Q_24 * $C$7 / DimPges, "") -> 
A91: Bez. Gesamt-Stickstoff | B91: % | C91: =IF(AND(ISNUMBER(Q_24), ISNUMBER(DimNges), ISNUMBER($C$8)), 100 * 0.001 * Q_24 * $C$8 / DimNges, "") -> 
A92: Bez. Ammonium-Stickstoff | B92: % | C92: =IF(AND(ISNUMBER(Q_24), ISNUMBER(DimNH4N), ISNUMBER($C$9)), 100 * 0.001 * Q_24 * $C$9 / DimNH4N, "") -> 50
A94: Nährstoffverhältnisse im Rohabwasser | B94: Einheit | C94: Wert
A95: CSB : BSB5 | B95: - | C95: =IF(AND(ISNUMBER($C$5), ISNUMBER(C6)), $C$5/C6, "") -> 
A96: CSB : Pges | B96: - | C96: =IF(AND(ISNUMBER($C$5), ISNUMBER(C7)), $C$5/C7, "") -> 
A97: CSB : Nges | B97: - | C97: =IF(AND(ISNUMBER($C$5), ISNUMBER(C8)), $C$5/C8, "") -> 
A98: CSB : NH4-N | B98: - | C98: =IF(AND(ISNUMBER($C$5), ISNUMBER(C9)), $C$5/C9, "") -> 20
A99: BSB5 : Pges | B99: - | C99: =IF(AND(ISNUMBER($C$6), ISNUMBER(C7)), $C$6/C7, "") -> 
A100: BSB5 : Nges | B100: - | C100: =IF(AND(ISNUMBER($C$6), ISNUMBER(C8)), $C$6/C8, "") -> 
A101: BSB5 : NH4-N | B101: - | C101: =IF(AND(ISNUMBER($C$6), ISNUMBER(C9)), $C$6/C9, "") -> 
A102: Nges : Pges | B102: - | C102: =IF(AND(ISNUMBER($C$8), ISNUMBER(C7)), $C$8/C7, "") -> 
A103: Nges : NH4-N | B103: - | C103: =IF(AND(ISNUMBER($C$8), ISNUMBER(C9)), $C$8/C9, "") -> 
A104: NH4-N : Pges | B104: - | C104: =IF(AND(ISNUMBER($C$9), ISNUMBER(C7)), $C$9/C7, "") -> 

Sheet SBVInfo
A1: Umrechnung von Wasserhärte-Einheiten
C2: °fH | D2: °dH | E2: mVal/l | F2: mg CaO/l | G2: mg CaCO3/l
A3: 10 | B3: °fH = | C3: =1 * A3 -> 10 | D3: =0.56 * A3 -> 5.6 | E3: =0.2 * A3 -> 2 | G3: =10 * A3 -> 100
A4: 1 | B4: °dH = | C4: =1.79 * A4 -> 1.79 | D4: =1 * A4 -> 1 | E4: =0.36 * A4 -> 0.36 | F4: =10 * A4 -> 10
A5: 1 | B5: mVal/l = | C5: =5 * A5 -> 5 | D5: =2.81 * A5 -> 2.81 | E5: =1 * A5 -> 1 | F5: =28.1 * A5 -> 28.1 | G5: =50 * A5 -> 50
A6: 1 | B6: mg CaCO3/l = | C6: =0.1 * A6 -> 0.1 | D6: =0.056 * A6 -> 0.056 | E6: =0.02 * A6 -> 0.02 | F6: =0.56 * A6 -> 0.56 | G6: =1 * A6 -> 1
A7: 1 | B7: mg Ca2+/l = | C7: =0.25 * A7 -> 0.25 | D7: =0.14 * A7 -> 0.14 | E7: =0.05 * A7 -> 0.05 | F7: =A7 * (mM_CaO / mM_Ca) -> 1.399196567 | G7: =A7 * (mM_CaCO3 / mM_Ca) -> 2.497280303
A8: 1 | B8: mg Mg2+/l = | C8: =0.41 * A8 -> 0.41 | D8: =0.23 * A8 -> 0.23 | E8: =0.082 * A8 -> 0.082
A10: Beurteilung von Wasserhärten
C11: °fH | D11: °dH | E11: mVal/l | F11: Vertretung
A12: sehr weich | C12: 0 - 7.2 | D12: 0 - 4 | E12: 0 - 1.4 | F12: nur kristallin
A13: weich | C13: 7.2 - 14.4 | D13: 4 - 8 | E13: 1.4 - 2.9
A14: mittelhart | C14: 14.4 - 21.6 | D14: 8 - 12 | E14: 2.9 - 4.3 | F14: Schotter-Grundwasser mit Flussinfiltration
A15: ziemlich hart | C15: 21.8 - 32.4 | D15: 12 - 18 | E15: 4.3 - 6.4 | F15: Schotter-Grundwasser (G.W.)
A16: hart | C16: 32.4 - 54.0 | D16: 18 - 30 | E16: 8.4 - 10.7 | F16: z.T. Molassequellen
A17: sehr hart | C17: > 54.0 | D17: > 30 | E17: > 10.7 | F17: Mineralquellen (Tafelwässer)
A19: Bestimmung des Säurebindevermögens (SVB)
A20: Prinzip
B21: Das Säurebindevermögen (auch Carbonathärte) wird durch Titration mit Salzsäure auf einen
B22: pH-Wert von 4.3 bestimmt. Es wird normalerweise ausgedrückt in französischen Härtegraden (°fH).
A24: Reagenzien und Materialien
B25: - Erlenmeyerkolben 300 ml
B26: - Messzylinder 100 ml
B27: - Schnellbetriebsbürette 5 ml oder 10 ml, Teilung 0.05 ml
B28: - Magnetrührer
B29: - Salzsäure 0.1 n zur Titration (0.1 n HCL)
B30: - pH-Messgerät oder Methylorange-Indikatorlösung
A32: Durchführung
B33: 100 ml Probewasser (Abfluss Vorklärung rsp. Zufluss Biologie) mit dem Messzylinder genau
B34: in den Erlenmeyerkolben abmessen und ein Magnetrührstäbchen hineingeben. pH- Elektrode einsetzen
B35: oder drei Tropfen Methylorange-Indikatorlösung dazugeben. Mit 0.1 n HCl bis pH 4.3 titrieren
B36: oder bei Verwendung des Indikators bis zur beginnen-den Orangefärbung.
A38: Berechnung
B39: SBV in °fH | C39: = (Verbrauch in ml * 5) - 0.05
B40: SBV in °dH | C40: = 0.36 * [(Verbrauch in ml) - 0.25]
B41: SBV in mMol/l | C41: = (Verbrauch in ml) - 0.25
A43: Störungen
B44: - Bei sehr weichen und kohlensäurereichen Proben die freie Kohlensäure (CO2)
B45: durch Erwärmen auch während der Titration entfernen.
B46: - Starke Eigenfärbung durch Aktivkohle entfernen.
B47: - Pro mg/l Eisen (Fe) oder Mangan (Mn) vom Endergebnis 0.1 °fH abziehen.
B48: - Beträgt der Verbrauch an 0.1 n HCl mehr als 8 ml, ist die Probe zu verdünnen.
B49: - Sehr hoher Sulfatgehalt (SO42-) verursacht etwas zu hohe Werte für die Carbonathärte.
B50: - Harte Wässer nicht zu lange stehen lassen, da sonst Calziumcarbonat (CaCO3) ausfällt und sich an den Wänden festsetzt.

Sheet PElim
A1: Parameter | B1: Einheit | C1: Wert | E1: Bemerkungen | G1: VarName | I1: HilfsVar
A3: Eingaben | B3: Einheit | C3: Wert
A4: Zufluss ARA (Tagesmenge) | B4: m3/d | C4: 1600 | G4: FM_Qtot
A5: P-ges Konz. im Zufluss | B5: mg P/l | C5: 3.5 | G5: FM_cPzu
A6: P-ges Konz. im Abfluss (Einleitungsbedingung - 0.3) | B6: mg P/l | C6: 0.5 | G6: FM_cPab
A7: Anteil zu fällendes P-ges durch Eisen-Fällmittel | B7: % | C7: =0.1*$I$7 -> 100 | E7: Rest: Aluminium | G7: FM_AnteilFe | I7: 1000
A8: Eisen Konz. des Eisen-Fällmittels | B8: g Fe/l | C8: 200 | E8: siehe Produktedatenblatt | G8: FM_cFe | I8: =AND(NOT(ISBLANK($C$7)), $C$7>=0, $C$7<=100) -> TRUE
A9: Aluminium Konz. des Al-Fällmittels | B9: g Al/l | C9: 9 | E9: siehe Produktedatenblatt | G9: FM_cAl
A10: ="Stöchiometrie Fe: " & TEXT($C$10,"0.00") & " g Fe/g P = " & TEXT(($C$10/mM_Fe)/(1/mM_P),"0.00") & " Mol Fe/P" -> Stöchiometrie Fe: 2.50 g Fe/g P = 1.39 Mol Fe/P | B10: g Fe/g P | C10: =0.01*$I$10 -> 2.5 | E10: Herstellerangaben | G10: FM_Stoch_Fe | I10: 250
A11: ="Stöchiometrie Al: " & TEXT($C$11,"0.00") & " g Al/g P = " & TEXT(($C$11/mM_Al)/(1/mM_P),"0.00") & " Mol Al/P" -> Stöchiometrie Al: 1.20 g Al/g P = 1.38 Mol Al/P | B11: g Al/g P | C11: =0.01*$I$11 -> 1.2 | E11: Herstellerangaben | G11: FM_Stoch_Al | I11: 120
A13: Betriebsparameter
A14: Pges Fracht im Zufluss | B14: kg P/d | C14: =0.001 * FM_Qtot * FM_cPzu -> 5.6 | G14: FM_fPzu
A15: Pges Fracht im Abfluss | B15: kg P/d | C15: =0.001 * FM_Qtot * FM_cPab -> 0.8 | G15: FM_fPab
A16: zu fällende Pges Fracht | B16: kg P/d | C16: =0.001 * FM_Qtot * (FM_cPzu - FM_cPab) -> 4.8 | G16: FM_fPel_kg
B17: kMol P/d | C17: =FM_fPel_kg / mM_P -> 0.1549686834 | G17: FM_fPel_Mol
A18: ="Einwohnerwerte Q-tot (" & EWspez_hydr & " l/EW*d)" -> Einwohnerwerte Q-tot (200 l/EW*d) | B18: EW | C18: =1000 * FM_Qtot / EWspez_hydr -> 8000
A19: ="Einwohnerwerte P-ges (" & EWspez_Pges & " l/EW*d)" -> Einwohnerwerte P-ges (1.5 l/EW*d) | B19: EW | C19: =1000 * FM_fPzu / EWspez_Pges -> 3733.333333
A20: Anteil zu fällendes Pges durch Aluminium-Fällmittel | B20: % | C20: =100 - FM_AnteilFe -> 0 | G20: FM_AnteilAl
A22: Bedarf an Fällmittel
A23: erforderliche Menge Eisen (100%) | B23: kg Fe/d | C23: =0.01 * FM_AnteilFe * FM_fPel_kg * FM_Stoch_Fe -> 12 | G23: FM_fFe_kg
B24: kMol Fe/d | C24: =FM_fFe_kg/ mM_Fe -> 0.2148804727 | G24: FM_fFe_Mol
A25: erforderliche Menge Aluminium (100%) | B25: kg Al/d | C25: =0.01 * FM_AnteilAl * FM_fPel_kg * FM_Stoch_Al -> 0 | G25: FM_fAl_kg
B26: kMol Al/d | C26: =FM_fAl_kg / mM_Al -> 0 | G26: FM_fAl_Mol
A27: β-Wert für Eisen | B27: - | C27: =IF(FM_AnteilFe>0, FM_fFe_Mol / (0.01 * FM_AnteilFe * FM_fPel_Mol), "") -> 1.386605784
A28: β-Wert für Aluminium | B28: - | C28: =IF(FM_AnteilAl>0, FM_fAl_Mol / (0.01 * FM_AnteilAl * FM_fPel_Mol), "") -> 
A29: β-Wert gesamt | B29: - | C29: =(FM_fFe_Mol + FM_fAl_Mol) / FM_fPel_Mol -> 1.386605784
A31: Dosierung der Fällmittel
A32: Eisenhaltiges Fällmittel (Fe-FM) | B32: l Fe-FM/d | C32: =1000 * FM_fFe_kg / FM_cFe -> 60 | E32: benötigte Menge (Liter) pro Tag
B33: l Fe-FM/h | C33: =1000 * FM_fFe_kg / (FM_cFe * 24) -> 2.5 | E33: erforderliche Dosierung (Liter) pro Stunde
B34: ml Fe-FM/min | C34: =1000 * 1000 * FM_fFe_kg / (FM_cFe * 24 * 60) -> 41.66666667 | E34: erforderliche Dosierung (Milliliter) pro Minute
B35: ml Fe-FM/m3 | C35: =1000 *1000 * FM_fFe_kg / (FM_cFe * $C$4) -> 37.5 | E35: erforderliche Dosierung (Milliliter) pro m3 Abwasser
A36: Aluminiumhaltiges Fällmittel (Al-FM) | B36: l Al-FM/d | C36: =1000 * FM_fAl_kg / FM_cAl -> 0
B37: l Al-FM/h | C37: =1000 * FM_fAl_kg / (FM_cAl * 24) -> 0
B38: ml Al-FM/min | C38: =1000 * 1000 * FM_fAl_kg / (FM_cAl * 24 * 60) -> 0
B39: ml Al-FM/m3 | C39: =1000 * 1000 * FM_fAl_kg / (FM_cAl * $C$4) -> 0

Sheet AnfNit
A1: Parameter | B1: Einheit | C1: Wert | E1: Bemerkungen | G1: VarName | I1: HilfsVar, alte Formeln
A3: Abwassertemperatur im Belüftungsbecken (Reaktor) | B3: °C | C3: =0.1*$I$3 -> 8.5 | G3: Nit_Temp | I3: 85
A4: Nges oder NH4-N Zuflusskonz. | B4: mg/l | C4: 25 | G4: Nit_cNH4Nzu | I4: e=
A5: Nitrifikationsgeschwindigkeit bei 10°C | B5: d-1 | C5: =0.32 * EXP(1)^(0.11 * (10 - 10)) -> 0.32 | E5: Wachstumsgeschwindigkeit der Nitrifikanten bei 10°C | G5: Nit_vTemp10 | I5: =EXP(1) -> 2.718281828
A6: Nitrifikationsgeschwindigkeit bei Abwassertemp. | B6: d-1 | C6: =IF(Nit_Temp>0, Nit_vTemp10 * EXP(1)^(0.11 * (Nit_Temp - 10)), "") -> 0.2713259853 | E6: ="Wachstumsgeschwindigkeit der Nitrifikanten bei " & C3 & " °C" -> Wachstumsgeschwindigkeit der Nitrifikanten bei 8.5 °C | G6: Nit_vTemp
A7: Reduktion Anforderungen | B7: % | C7: =IF(AND(Nit_Temp>0, Nit_Temp<10), 100 * ((Nit_vTemp10 - Nit_vTemp) / Nit_vTemp10), 0) -> 15.21062959 | G7: Nit_RedEB | I7: =IF(Nit_Temp>0, IF(Nit_Temp<10, 100 * ((Nit_vTemp10 - Nit_vTemp) / Nit_vTemp10), 0), "") -> 15.21062959
A8: Anforderung NH4-N Abflusskonz. | B8: mg/l | C8: =IF(AND(Nit_Temp>0, Nit_Temp<10, Nit_cNH4Nzu>0), 2 + 0.01 * Nit_RedEB * (Nit_cNH4Nzu - 2), 2) -> 5.498444806 | G8: Nit_EB_c | I8: =IF(Nit_Temp>0, IF(Nit_Temp<10, IF(Nit_cNH4Nzu>0, 0.01 * Nit_RedEB * Nit_cNH4Nzu, ""), 2), "") -> 3.802657398
A9: Anforderung NH4-N Reinigungseffekt | B9: % | C9: =IF(AND(Nit_Temp>0, Nit_Temp<10, Nit_cNH4Nzu>0), 90 - Nit_RedEB, 90) -> 74.78937041 | G9: Nit_EB_Re | I9: =IF(Nit_Temp>0, IF(Nit_Temp<10, IF(Nit_cNH4Nzu>0, 90 - Nit_RedEB, ""), 90), "") -> 74.78937041
A11: Runden Abflusskonz. (vielfaches von) | B11: - | C11: 1
A12: Runden Reinigungseffekt (vielfaches von) | B12: - | C12: 1
A13: Anforderung NH4-N Abflusskonz. gerundet | B13: mg/l | C13: =IF(Nit_Temp>0, IF(Nit_Temp<10, IF(Nit_cNH4Nzu>0, MAX(CEILING(0.01 * Nit_RedEB * Nit_cNH4Nzu, $C$11),2), ""), 2), "") -> 4
A14: Anforderung NH4-N Reinigungseffekt gerundet | B14: % | C14: =IF(Nit_Temp>0, IF(Nit_Temp<10, IF(Nit_cNH4Nzu>0, FLOOR(90 - Nit_RedEB, $C$12), ""), 90), "") -> 74

Sheet KTB
A1: Parameter | B1: Einheit | C1: Wert | E1: Bemerkungen | G1: VarName | I1: HilfsVar
A3: Schlammalter (Belebtschlammanlagen)
A4: Volumen Belüftungsbecken gesamt | B4: m3 | C4: 800 | D4: *
A5: Gehalt an Trockensubstanz (TS) im Belüftungsbecken | B5: g TS/l | C5: 3.4
A6: Abzug an Überschuss-Schlamm (ÜSS) pro Tag | B6: m3 ÜSS/d | C6: 18
A7: TS-Gehalt des ÜSS | B7: g TS/l | C7: 6.5
A8: Abwassermenge pro Tag | B8: m3/d | C8: 1500
A9: gesamte ungelöste Stoffe (GUS) im Abfluss | B9: mg/l | C9: 15
A10: SBR-Zykluszeit gesamt (Summe aller Phasen) | B10: h | C10: 12 | E10: SBR: Sequencing Batch Reactor
A11: SBR-Belüftungsphase(n) pro Zyklus | B11: h | C11: 8
A13: Belebtschlammmenge gesamt im System | B13: kg | C13: =IF(AND(ISNUMBER($C$4), ISNUMBER($C$5)), $C$4 * $C$5, "") -> 2720
A14: TS-Fracht im ÜSS | B14: kg/d | C14: =IF(AND(ISNUMBER($C$6), ISNUMBER($C$7)), $C$6 * $C$7, "") -> 117
A15: GUS-Fracht im Abfluss | B15: kg/d | C15: =IF(AND(ISNUMBER($C$8), ISNUMBER($C$9)), 0.001 * $C$8 * $C$9, "") -> 22.5
A16: Schlammalter gesamt | B16: d | C16: =IF(AND(ISNUMBER($C$13), ISNUMBER($C$14), $C$14>0), $C$13 / ($C$14 + IF(ISNUMBER($C$15), $C$15, 0)), "") -> 19.49820789 | E16: GUS wird berücksichtigt, wenn eingegeben
A17: Schlammalter aerob (im SBR) | B17: d | C17: =IF(AND(ISNUMBER($C$13), ISNUMBER($C$14), $C$10>0, ISNUMBER($C$11)), $C$13 / ($C$14 + IF(ISNUMBER($C$15), $C$15, 0)) * ($C$11/$C$10), "") -> 12.99880526
A19: Schlammindex (SI bzw. SVI)
A20: TS-Gehalt im Belüftungsbecken | B20: g/l | C20: 4.3
A21: Absetzvolumen Belebtschlamm | B21: ml/l | C21: 330
A23: Schlamm(volumen)index | B23: ml/g | C23: =IF(AND(ISNUMBER($C$21), ISNUMBER($C$20), $C$20>0), $C$21 / $C$20, "") -> 76.74418605
A25: Aufenthaltszeit (VKB, BB, NKB, FR)
A26: Beckenvolumen | B26: m3 | C26: 800 | D26: *
A27: Abwassermenge bzw. Frischschlammmenge pro Tag | B27: m3/d | C27: 1500
A29: Aufenthaltszeit | B29: h | C29: =IF(AND(ISNUMBER($C$26), ISNUMBER($C$27), $C$27>0), $C$26 / ($C$27 / 24), "") -> 12.8
A31: hydraulische Oberflächenbelastung (VKB, NKB)
A32: Beckenoberfläche | B32: m2 | C32: 200 | D32: *
A33: Abwassermenge pro Tag | B33: m3/d | C33: 1500
A35: hydraulische Oberflächenbelastung | B35: m/h | C35: =IF(AND(ISNUMBER($C$33), ISNUMBER($C$32), $C$32>0), $C$33 / (24 * $C$32), "") -> 0.3125
A37: TS-Oberflächenbelastung NKB
A38: Beckenoberfläche NKB | B38: m2 | C38: 200 | D38: *
A39: Abwassermenge pro Tag | B39: m3/d | C39: 500
A40: TS-Gehalt im Belüftungsbecken | B40: g TS/l | C40: 3
A42: TS-Oberflächenbelastung | B42: g/m2/h | C42: =IF(AND(ISNUMBER($C$39), ISNUMBER($C$40), ISNUMBER($C$38), $C$38>0), 1000 * ($C$39 * $C$40) / (24 * $C$38), "") -> 312.5
A44: Schlammvolumenbelastung NKB
A45: Beckenoberfläche NKB | B45: m2 | C45: 200 | D45: *
A46: Abwassermenge pro Tag | B46: m3/d | C46: 444
A47: TS-Gehalt im Belüftungsbecken | B47: g TS/l
A48: Absetzvolumen Belebtschlamm | B48: ml/l | C48: 250
A50: Schlammvolumenbelastung | B50: l/m2*h | C50: =IF(AND(ISNUMBER($C$46), ISNUMBER($C$48), ISNUMBER($C$45), $C$45>0), ($C$46 * $C$48) / (24 * $C$45), "") -> 23.125
A52: BSB5- bzw. CSB-Schlammbelastung BB
A53: Volumen Belüftungsbecken | B53: m3 | C53: 800 | D53: *
A54: Abwassermenge pro Tag | B54: m3/d | C54: 426
A55: Konzentration (BSB5 bzw. CSB) im Zufluss BB | B55: mg/l | C55: 177
A56: TS-Gehalt im BB | B56: g/l | C56: 2.6
A58: BSB5- bzw. CSB-Schlammbelastung im BB | B58: g/g TS*d | C58: =IF(AND(ISNUMBER($C$54), ISNUMBER($C$55), ISNUMBER($C$53), $C$53>0, ISNUMBER($C$56)), (0.001 * $C$54 * $C$55) / ($C$53 * $C$56), "") -> 0.03625096154
A60: BSB5- bzw. CSB-Volumenbelastung BB
A61: Volumen Belüftungsbecken | B61: m3 | C61: 800 | D61: *
A62: Abwassermenge pro Tag | B62: m3/d | C62: 426
A63: Konzentration (BSB5 bzw. CSB) im Zufluss BB | B63: mg/l | C63: 177
A65: BSB5- bzw. CSB-Oberflächenbelastung BB | B65: g/m3*d | C65: =IF(AND(ISNUMBER($C$62), ISNUMBER($C$63), ISNUMBER($C$61), $C$61>0), (0.001 * $C$62 * $C$63) / $C$61, "") -> 0.0942525
A67: BSB5- bzw. CSB-Oberflächenbelastung (TK/TTK)
A68: Oberfläche (Tauch-) Tropfkörper (TK/TTK) | B68: m2 | C68: 3500 | D68: *
A69: Abwassermenge pro Tag | B69: m3/d | C69: 500
A70: BSS5- bzw. CSB-Konzentration im Zufluss TK/TTK | B70: mg/l | C70: 463
A72: BSB5- bzw. CSB-Oberflächenbelastung TK/TTK | B72: g/m2*d | C72: =IF(AND(ISNUMBER($C$70), ISNUMBER($C$69), ISNUMBER($C$68), $C$68>0), ($C$70 * $C$69) / $C$68, "") -> 66.14285714
A74: hydr. Oberflächenbelastung (Filter)
A75: Oberfläche Filter | B75: m2 | C75: 50 | D75: *
A76: Abwassermenge pro Tag | B76: m3/d | C76: 500
A78: hydr. Oberflächenbelastung Filter | B78: m3/m2*h | C78: =IF(AND(ISNUMBER($C$76), ISNUMBER($C$75), $C$75>0), $C$76 / (24 * $C$75), "") -> 0.4166666667
A80: TS- und oTS-Belastung Faulraum
A81: Volumen Faulraum | B81: m3 | C81: 750 | D81: *
A82: Frischschlammmenge pro Tag | B82: m3/d | C82: 30
A83: TS-Gehalt des Frischschlammes | B83: % | C83: 3.5
A84: Glühverlust des Frischschlammes (GV = oTS) | B84: % | C84: 70
A86: TS-Fracht Frischschlamm | B86: kg/d | C86: =IF(AND(ISNUMBER($C$82), ISNUMBER($C$83)), 10 * $C$82 * $C$83, "") -> 1050
A87: oTS-Fracht Frischschlamm | B87: kg/d | C87: =IF(AND(ISNUMBER($C$82), ISNUMBER($C$83), ISNUMBER($C$84)), 0.1 * $C$82 * $C$83 * $C$84, "") -> 735
A88: hydr. Aufenthaltszeit im Faulraum | B88: d | C88: =IF(AND(ISNUMBER($C$81), ISNUMBER($C$82), $C$82>0), $C$81 / $C$82, "") -> 25
A89: TS-Belastung Faulraum | B89: kg TS/m3*d | C89: =IF(AND(ISNUMBER($C$86), ISNUMBER($C$81), $C$81>0), $C$86 / $C$81, "") -> 1.4
A90: oTS-Belastung Faulaum | B90: kg oTS/m3*d | C90: =IF(AND(ISNUMBER($C$87), ISNUMBER($C$81), $C$81>0), $C$87 / $C$81, "") -> 0.98
A92: Abbauleistungen
A93: Konzentration im ARA-Zufluss | B93: mg/l | C93: 6.5
A94: Konzentration im ARA-Abfluss | B94: mg/l | C94: 0.25
A96: Abbauleistung | B96: % | C96: =IF(AND(ISNUMBER($C$93), ISNUMBER($C$94), $C$93>0), 100 * ($C$93 - $C$94) / $C$93, "") -> 96.15384615
A98: Benchmarks
A99: Strombezug Netz in Betrachtungsperiode | B99: kWh/p | C99: 10000 | E99: beliebige Betrachtungsperiode (p): z.B. 7 Tage, 3 Monat3, 1 Jahr
A100: Stromproduktion in Betrachtungsperiode | B100: kWh/p | C100: 2000
A101: Abwassermenge pro Betrachtungsperiode | B101: m3/p | C101: 50000
A102: CSB-Konz. Zufluss, Mittelwert in Betrachtungsperiode | B102: mg/l | C102: 225
A103: CSB-Konz. Abfluss, Mittelwert in Betrachtungsperiode | B103: mg/l | C103: 34
A105: Frischschlamm (FrS), Menge in Betrachtungsperiode | B105: m3/p | C105: 350
A106: TS-Gehalt FrS, Mittelwert in Betrachtungsperiode | B106: % | C106: 3.5
A107: oTS-Gehalt FrS, Mittelwert in Betrachtungsperiode | B107: % | C107: 75
A108: Gasproduktion in Betrachtungsperiode | B108: m3/p | C108: 75000
A110: Stromverbrauch Total in Betrachtungsperiode | B110: kWh/p | C110: =IF(ISNUMBER($C$99), $C$99, 0) + IF(ISNUMBER($C$100), $C$100, 0) -> 12000
A111: Stromverbrauch pro m3 Abwasser | B111: kWh/m3 | C111: =IF(AND(ISNUMBER($C$110), $C$110>0, ISNUMBER($C$101), $C$101>0), $C$110 / $C$101, "") -> 0.24
A112: Stromverbrauch pro kg CSB im Zufluss | B112: kWh/kg CSB zu | C112: =IF(AND($C$110>0, ISNUMBER($C$101), ISNUMBER($C$102)), $C$110 / (0.001 * $C$101 * $C$102), "") -> 1.066666667
A113: Stromverbrauch pro kg CSB abgebaut | B113: kWh/kg CSB el | C113: =IF(AND($C$110>0, ISNUMBER($C$101), ISNUMBER($C$102), ISNUMBER($C$103), $C$102>$C$103), $C$110 / (0.001 * $C$101 * ($C$102 - $C$103)), "") -> 1.256544503
A114: Strom-Eigendeckungsgrad | B114: % | C114: =IF(AND(ISNUMBER($C$100), ISNUMBER($C$99)), 100 * $C$100 / ($C$99 + $C$100), "") -> 16.66666667
A116: Gasproduktion pro m3 Abwasser | B116: m3/m3 | C116: =IF(AND(ISNUMBER($C$108), ISNUMBER($C$101), $C$101<>0), $C$108/$C$101, "") -> 1.5
A117: Gasproduktion pro m3 Frischschlamm | B117: m3/m3 FrS | C117: =IF(AND(ISNUMBER($C$108), ISNUMBER($C$105), $C$105<>0), $C$108 / $C$105, "") -> 214.2857143
A118: Gasproduktion pro kg TS im Frischschlamm | B118: m3/kg TS | C118: =IF(AND(ISNUMBER($C$108), ISNUMBER($C$105), ISNUMBER($C$106)), $C$108 / (10 * $C$105 * $C$106), "") -> 6.12244898
A119: Gasproduktion pro kg oTS im Frischschlamm | B119: m3/kg oTS | C119: =IF(AND(ISNUMBER($C$108), ISNUMBER($C$105), ISNUMBER($C$106), ISNUMBER($C$107)), $C$108 / (0.1 * $C$105 * $C$106 * $C$107), "") -> 8.163265306

Sheet KSew
A1: Parameter | B1: Einheit | C1: Wert | E1: Bemerkungen | G1: VarName | I1: HilfsVar
A3: Klärschlamm flüssig, Menge | B3: m3 | C3: 1500 | E3: Eingabe von beliebigen 3 der 4 Parametern (gelbe Felder).
A4: Klärschlamm flüssig, TS-Konz. | B4: % | C4: 5 | E4: Den zu berechnenden gesuchten Parameter vorher löschen.
E5: Berechnung durch Click auf Button <berechnen>.
A6: Klärschlamm entwässert, Menge | B6: m3 bzw. t | E6: Bei der berechneten Menge an Zentrat ist das Wassers
A7: Klärschlamm entwässert, TS-Gehalt | B7: % | C7: 35 | E7: des Flockungsmittels nicht berücksichtigt.
A9: Zentrat, anfallende Menge | B9: m3
A10: TS-Fracht (in flüssigem UND entwässerten Schlamm gleich) | B10: t TS
A11: Mengenreduktion, bez. auf Menge flüssig (Entwässerungsg.) | B11: %
